[Event "*** Titled Tuesday Blitz"]
[Site "Chess.com"]
[Date "2018.06.05"]
[Round "8"]
[White "Andreikka"]
[Black "GadimbayliA"]
[Result "0-1"]
[WhiteElo "2798"]
[BlackElo "2564"]
[TimeControl "180+2"]
[EndTime "14:57:16 PDT"]
[Termination "GadimbayliA won by checkmate"]

1. d4 {[%clk 0:03:01.5]} 1... e6 {[%clk 0:02:59.4]} 2. Nf3 {[%clk 0:03:02.7]}
2... Nf6 {[%clk 0:02:58.8]} 3. Bf4 {[%clk 0:03:03.9]} 3... c5 {[%clk 0:02:59.2]}
4. e3 {[%clk 0:03:04.8]} 4... Nc6 {[%clk 0:02:59.2]} 5. c3 {[%clk 0:03:06.1]}
5... d5 {[%clk 0:02:54.4]} 6. Nbd2 {[%clk 0:03:07.4]} 6... Bd6 {[%clk
0:02:47.4]} 7. Bg3 {[%clk 0:03:08.8]} 7... O-O {[%clk 0:02:45.3]} 8. Bd3 {[%clk
0:03:10.2]} 8... b6 {[%clk 0:02:40.9]} 9. Qe2 {[%clk 0:03:11.4]} 9... Bb7 {[%clk
0:02:36.3]} 10. Rd1 {[%clk 0:03:12.8]} 10... h6 {[%clk 0:02:22.5]} 11. dxc5
{[%clk 0:03:09]} 11... Bxg3 {[%clk 0:02:18.1]} 12. hxg3 {[%clk 0:03:09.7]} 12...
bxc5 {[%clk 0:02:18.6]} 13. e4 {[%clk 0:03:11.2]} 13... Re8 {[%clk 0:02:06.8]}
14. O-O {[%clk 0:03:08.8]} 14... Qb6 {[%clk 0:02:03.4]} 15. Rb1 {[%clk
0:02:54.7]} 15... Rad8 {[%clk 0:01:53.9]} 16. e5 {[%clk 0:02:47.7]} 16... Nd7
{[%clk 0:01:50.8]} 17. g4 {[%clk 0:02:43.1]} 17... Rb8 {[%clk 0:01:37.9]} 18.
Rfe1 {[%clk 0:02:42.8]} 18... c4 {[%clk 0:01:35.1]} 19. Bc2 {[%clk 0:02:41.9]}
19... Ba6 {[%clk 0:01:32.2]} 20. Nf1 {[%clk 0:02:29.1]} 20... d4 {[%clk
0:01:27]} 21. cxd4 {[%clk 0:02:25.7]} 21... Red8 {[%clk 0:01:25.9]} 22. Qe4
{[%clk 0:02:22.5]} 22... Nf8 {[%clk 0:01:22.5]} 23. Red1 {[%clk 0:02:18.9]}
23... Nb4 {[%clk 0:01:21]} 24. Rd2 {[%clk 0:01:49.2]} 24... Bb7 {[%clk
0:01:18.6]} 25. Qe1 {[%clk 0:01:50.5]} 25... Bxf3 {[%clk 0:01:16.1]} 26. gxf3
{[%clk 0:01:51.5]} 26... Nxc2 {[%clk 0:01:16.2]} 27. Rxc2 {[%clk 0:01:52.1]}
27... Rxd4 {[%clk 0:01:12.6]} 28. Rbc1 {[%clk 0:01:52.2]} 28... Rbd8 {[%clk
0:01:05.6]} 29. Ne3 {[%clk 0:01:48.9]} 29... Ng6 {[%clk 0:01:04.1]} 30. Nxc4
{[%clk 0:01:39]} 30... Qb7 {[%clk 0:01:04.9]} 31. Rc3 {[%clk 0:00:55.8]} 31...
Nh4 {[%clk 0:00:48.4]} 32. Qe2 {[%clk 0:00:55.1]} 32... Rxg4+ {[%clk 0:00:47.2]}
33. Kf1 {[%clk 0:00:53.4]} 33... Rf4 {[%clk 0:00:47.9]} 34. Nd6 {[%clk
0:00:53.4]} 34... Qe7 {[%clk 0:00:40.8]} 35. Rc4 {[%clk 0:00:49.8]} 35... Qg5
{[%clk 0:00:33.2]} 36. Rxf4 {[%clk 0:00:45.2]} 36... Qxf4 {[%clk 0:00:35.1]} 37.
Rc4 {[%clk 0:00:41.1]} 37... Qh2 {[%clk 0:00:35.7]} 38. Ke1 {[%clk 0:00:39.4]}
38... Qh1+ {[%clk 0:00:33.6]} 39. Kd2 {[%clk 0:00:37.4]} 39... Nxf3+ {[%clk
0:00:35.5]} 40. Kc2 {[%clk 0:00:38.7]} 40... Qh5 {[%clk 0:00:31.1]} 41. Qe4
{[%clk 0:00:23.5]} 41... Qxe5 {[%clk 0:00:27.1]} 42. Qxf3 {[%clk 0:00:15.6]}
42... Rxd6 {[%clk 0:00:24.3]} 43. a3 {[%clk 0:00:14.1]} 43... h5 {[%clk
0:00:19.7]} 44. Rc8+ {[%clk 0:00:09.9]} 44... Kh7 {[%clk 0:00:19.3]} 45. Qxf7
{[%clk 0:00:11.5]} 45... Qe4+ {[%clk 0:00:17.7]} 46. Kb3 {[%clk 0:00:09.8]}
46... Qd5+ {[%clk 0:00:18.7]} 47. Kc3 {[%clk 0:00:03.3]} 47... Qd3+ {[%clk
0:00:18]} 48. Kb4 {[%clk 0:00:04.6]} 48... Rb6+ {[%clk 0:00:19.9]} 49. Kc5
{[%clk 0:00:05.4]} 49... Rb5+ {[%clk 0:00:19]} 50. Kc6 {[%clk 0:00:05.9]} 50...
Qd5+ {[%clk 0:00:20.9]} 51. Kc7 {[%clk 0:00:07.8]} 51... Rb7# {[%clk 0:00:22.3]}
0-1

[Event "*** Titled Tuesday Blitz"]
[Site "Chess.com"]
[Date "2018.06.05"]
[Round "8"]
[White "Galileo22"]
[Black "champ2005"]
[Result "0-1"]
[WhiteElo "2345"]
[BlackElo "2561"]
[TimeControl "180+2"]
[EndTime "14:57:19 PDT"]
[Termination "champ2005 won by checkmate"]

1. Nf3 {[%clk 0:03:01.9]} 1... Nf6 {[%clk 0:03:00.5]} 2. g3 {[%clk 0:03:03]}
2... g6 {[%clk 0:02:58.7]} 3. Bg2 {[%clk 0:03:04.3]} 3... Bg7 {[%clk 0:03:00.1]}
4. O-O {[%clk 0:03:05.8]} 4... O-O {[%clk 0:03:01]} 5. d3 {[%clk 0:03:07.6]}
5... d5 {[%clk 0:03:01.1]} 6. Nbd2 {[%clk 0:03:08]} 6... c5 {[%clk 0:03:01.9]}
7. e4 {[%clk 0:03:09]} 7... Nc6 {[%clk 0:03:03]} 8. Re1 {[%clk 0:03:09.3]} 8...
b6 {[%clk 0:03:00]} 9. h3 {[%clk 0:02:52.4]} 9... dxe4 {[%clk 0:03:00.6]} 10.
dxe4 {[%clk 0:02:52]} 10... Bb7 {[%clk 0:03:01.3]} 11. Qe2 {[%clk 0:02:46.6]}
11... e5 {[%clk 0:02:54]} 12. c3 {[%clk 0:02:39.3]} 12... Nd7 {[%clk 0:02:51.8]}
13. Rd1 {[%clk 0:02:26]} 13... Qc7 {[%clk 0:02:52.2]} 14. a3 {[%clk 0:02:25.3]}
14... Rfd8 {[%clk 0:02:50.2]} 15. Nf1 {[%clk 0:02:24.8]} 15... Nf6 {[%clk
0:02:45.8]} 16. Bg5 {[%clk 0:02:23.9]} 16... h6 {[%clk 0:02:45.5]} 17. Bxf6
{[%clk 0:02:23.8]} 17... Bxf6 {[%clk 0:02:47.4]} 18. Ne3 {[%clk 0:02:23.8]}
18... Ne7 {[%clk 0:02:48.1]} 19. Qc2 {[%clk 0:02:22.7]} 19... h5 {[%clk
0:02:44.4]} 20. h4 {[%clk 0:02:16.9]} 20... Kg7 {[%clk 0:02:43.1]} 21. Nd2
{[%clk 0:02:15.1]} 21... a6 {[%clk 0:02:36.7]} 22. Ndf1 {[%clk 0:02:09.9]} 22...
b5 {[%clk 0:02:34.6]} 23. Rxd8 {[%clk 0:01:58.2]} 23... Rxd8 {[%clk 0:02:34.5]}
24. Rd1 {[%clk 0:01:59.4]} 24... Nc8 {[%clk 0:02:30.7]} 25. c4 {[%clk
0:01:41.1]} 25... Rd4 {[%clk 0:02:26.7]} 26. Qe2 {[%clk 0:01:25.9]} 26... Nd6
{[%clk 0:02:23.3]} 27. Nd5 {[%clk 0:01:09.9]} 27... Bxd5 {[%clk 0:02:19.3]} 28.
cxd5 {[%clk 0:01:11.8]} 28... Rxd1 {[%clk 0:02:15]} 29. Qxd1 {[%clk 0:01:12.2]}
29... c4 {[%clk 0:02:16.1]} 30. Qc1 {[%clk 0:01:05.7]} 30... Bd8 {[%clk
0:02:05.7]} 31. Nd2 {[%clk 0:01:03.8]} 31... Qa7 {[%clk 0:02:04.1]} 32. Qc3
{[%clk 0:00:59.2]} 32... f6 {[%clk 0:02:04.1]} 33. Qb4 {[%clk 0:00:44.9]} 33...
Bc7 {[%clk 0:02:04.5]} 34. Bh3 {[%clk 0:00:40.4]} 34... a5 {[%clk 0:02:03.7]}
35. Qc3 {[%clk 0:00:40.8]} 35... Bb6 {[%clk 0:02:04.9]} 36. Qf3 {[%clk 0:00:38]}
36... Bd4 {[%clk 0:02:05.9]} 37. b3 {[%clk 0:00:31.4]} 37... c3 {[%clk
0:02:02.2]} 38. Qd3 {[%clk 0:00:21.1]} 38... cxd2 {[%clk 0:02:02]} 39. Qxd2
{[%clk 0:00:22.2]} 39... Qc7 {[%clk 0:02:02.1]} 40. Bg2 {[%clk 0:00:20.3]} 40...
Qc3 {[%clk 0:02:02.2]} 41. Qxc3 {[%clk 0:00:21]} 41... Bxc3 {[%clk 0:02:04.1]}
42. a4 {[%clk 0:00:21.3]} 42... bxa4 {[%clk 0:02:04.8]} 43. bxa4 {[%clk
0:00:23.1]} 43... f5 {[%clk 0:02:00.6]} 44. f3 {[%clk 0:00:22.1]} 44... f4
{[%clk 0:02:00.3]} 45. g4 {[%clk 0:00:20.1]} 45... Be1 {[%clk 0:01:59.3]} 46.
gxh5 {[%clk 0:00:20.1]} 46... gxh5 {[%clk 0:01:59.9]} 47. Bf1 {[%clk 0:00:21.2]}
47... Bxh4 {[%clk 0:02:00.5]} 48. Kg2 {[%clk 0:00:22]} 48... Bd8 {[%clk
0:02:01.2]} 49. Ba6 {[%clk 0:00:21.9]} 49... Kf6 {[%clk 0:01:59.4]} 50. Kh3
{[%clk 0:00:22.9]} 50... Kg5 {[%clk 0:01:59.6]} 51. Kh2 {[%clk 0:00:19.7]} 51...
Bb6 {[%clk 0:01:58.8]} 52. Kg2 {[%clk 0:00:20.4]} 52... Bc5 {[%clk 0:01:58.1]}
53. Kh2 {[%clk 0:00:21.2]} 53... Kh4 {[%clk 0:01:59.2]} 54. Kg2 {[%clk
0:00:22.1]} 54... Nf7 {[%clk 0:01:50.5]} 55. Kh2 {[%clk 0:00:21.2]} 55... Kg5
{[%clk 0:01:50.1]} 56. Kg2 {[%clk 0:00:21.6]} 56... Kf6 {[%clk 0:01:51.4]} 57.
Be2 {[%clk 0:00:20.2]} 57... Ng5 {[%clk 0:01:52.4]} 58. Bb5 {[%clk 0:00:19]}
58... Ke7 {[%clk 0:01:52.6]} 59. Kh2 {[%clk 0:00:18.6]} 59... Nxf3+ {[%clk
0:01:52.7]} 60. Kh3 {[%clk 0:00:19.8]} 60... Ng5+ {[%clk 0:01:53.7]} 61. Kh4
{[%clk 0:00:21.1]} 61... Nxe4 {[%clk 0:01:55.2]} 62. Kxh5 {[%clk 0:00:22.3]}
62... f3 {[%clk 0:01:56.4]} 63. Kg4 {[%clk 0:00:23.1]} 63... f2 {[%clk
0:01:57.4]} 64. Kf5 {[%clk 0:00:24.3]} 64... Nd6+ {[%clk 0:01:58.3]} 65. Kxe5
{[%clk 0:00:22.8]} 65... Nxb5 {[%clk 0:01:52.9]} 66. axb5 {[%clk 0:00:23.9]}
66... Bd6+ {[%clk 0:01:52.7]} 67. Kd4 {[%clk 0:00:24.5]} 67... f1=Q {[%clk
0:01:53.8]} 68. b6 {[%clk 0:00:25.9]} 68... Qb5 {[%clk 0:01:53.8]} 69. b7 {[%clk
0:00:27.2]} 69... Qxb7 {[%clk 0:01:55]} 70. Kc4 {[%clk 0:00:29]} 70... a4 {[%clk
0:01:56.3]} 71. Kc3 {[%clk 0:00:29.9]} 71... a3 {[%clk 0:01:57.6]} 72. Kc2
{[%clk 0:00:31.8]} 72... a2 {[%clk 0:01:57]} 73. Kc1 {[%clk 0:00:33.7]} 73...
a1=Q+ {[%clk 0:01:58]} 74. Kc2 {[%clk 0:00:35.4]} 74... Qbb2+ {[%clk 0:01:59.3]}
75. Kd3 {[%clk 0:00:37.3]} 75... Qc3+ {[%clk 0:02:00.5]} 76. Ke4 {[%clk
0:00:39.2]} 76... Qd4+ {[%clk 0:02:01.7]} 77. Kf5 {[%clk 0:00:40.6]} 77... Qe5+
{[%clk 0:02:02.8]} 78. Kg6 {[%clk 0:00:41.3]} 78... Qg1+ {[%clk 0:02:03.5]} 79.
Kh7 {[%clk 0:00:41.2]} 79... Qgg7# {[%clk 0:02:04.3]} 0-1

[Event "*** Titled Tuesday Blitz"]
[Site "Chess.com"]
[Date "2018.06.05"]
[Round "8"]
[White "AlexanderL"]
[Black "Parhamov"]
[Result "0-1"]
[WhiteElo "2724"]
[BlackElo "2830"]
[TimeControl "180+2"]
[EndTime "14:57:24 PDT"]
[Termination "Parhamov won on time"]

1. Nf3 {[%clk 0:03:01.9]} 1... d5 {[%clk 0:02:57.1]} 2. e3 {[%clk 0:03:00.6]}
2... c6 {[%clk 0:02:57.8]} 3. c4 {[%clk 0:02:56]} 3... Nf6 {[%clk 0:02:58.5]} 4.
d4 {[%clk 0:02:55.1]} 4... a6 {[%clk 0:02:56.7]} 5. Bd3 {[%clk 0:02:52.8]} 5...
Bg4 {[%clk 0:02:57]} 6. Nbd2 {[%clk 0:02:53]} 6... e6 {[%clk 0:02:52.4]} 7. O-O
{[%clk 0:02:50.2]} 7... Nbd7 {[%clk 0:02:53.2]} 8. b3 {[%clk 0:02:48.2]} 8...
Bd6 {[%clk 0:02:52.8]} 9. Bb2 {[%clk 0:02:49]} 9... O-O {[%clk 0:02:53.8]} 10.
Qc2 {[%clk 0:02:48.2]} 10... Bh5 {[%clk 0:02:54]} 11. Ne5 {[%clk 0:02:48.3]}
11... Bg6 {[%clk 0:02:54.2]} 12. Nxg6 {[%clk 0:02:48.2]} 12... hxg6 {[%clk
0:02:55.1]} 13. e4 {[%clk 0:02:47.5]} 13... dxe4 {[%clk 0:02:49.5]} 14. Nxe4
{[%clk 0:02:48.1]} 14... Nxe4 {[%clk 0:02:50.8]} 15. Bxe4 {[%clk 0:02:49.9]}
15... Rc8 {[%clk 0:02:41.6]} 16. Rfe1 {[%clk 0:02:48.8]} 16... Nf6 {[%clk
0:02:41.5]} 17. Bf3 {[%clk 0:02:49.7]} 17... Qe7 {[%clk 0:02:41.4]} 18. Rad1
{[%clk 0:02:50.1]} 18... Ba3 {[%clk 0:02:40]} 19. Ba1 {[%clk 0:02:50.3]} 19...
Rfd8 {[%clk 0:02:40.8]} 20. Re2 {[%clk 0:02:51.3]} 20... Qc7 {[%clk 0:02:36.2]}
21. g3 {[%clk 0:02:51.7]} 21... Bf8 {[%clk 0:02:36.5]} 22. Kg2 {[%clk
0:02:51.9]} 22... b5 {[%clk 0:02:37.6]} 23. Bc3 {[%clk 0:02:48.1]} 23... a5
{[%clk 0:02:35.7]} 24. h4 {[%clk 0:02:45]} 24... Bb4 {[%clk 0:02:34.8]} 25. Bb2
{[%clk 0:02:41.7]} 25... Bf8 {[%clk 0:02:22.8]} 26. Bc1 {[%clk 0:02:42.4]} 26...
Qa7 {[%clk 0:02:09.3]} 27. Be3 {[%clk 0:02:42.1]} 27... Qa6 {[%clk 0:02:10.4]}
28. Ree1 {[%clk 0:02:35]} 28... a4 {[%clk 0:02:10.4]} 29. Rh1 {[%clk 0:02:34.4]}
29... axb3 {[%clk 0:02:10.5]} 30. axb3 {[%clk 0:02:35.3]} 30... bxc4 {[%clk
0:02:11.8]} 31. bxc4 {[%clk 0:02:37.2]} 31... c5 {[%clk 0:02:10.4]} 32. d5
{[%clk 0:02:37.9]} 32... exd5 {[%clk 0:02:11.5]} 33. cxd5 {[%clk 0:02:38.7]}
33... c4 {[%clk 0:02:12.9]} 34. h5 {[%clk 0:02:38.3]} 34... gxh5 {[%clk
0:02:09.8]} 35. Bxh5 {[%clk 0:02:38.5]} 35... Rxd5 {[%clk 0:01:31.5]} 36. Rxd5
{[%clk 0:02:28.7]} 36... Nxd5 {[%clk 0:01:32.5]} 37. Bd4 {[%clk 0:02:05.4]}
37... Ne7 {[%clk 0:00:48.1]} 38. Bf3 {[%clk 0:01:40.4]} 38... Qg6 {[%clk
0:00:44.2]} 39. Be4 {[%clk 0:01:30.7]} 39... f5 {[%clk 0:00:44.4]} 40. Bf3
{[%clk 0:01:29.1]} 40... Qf7 {[%clk 0:00:42.8]} 41. Rh5 {[%clk 0:00:47.7]} 41...
Rd8 {[%clk 0:00:42]} 42. Be5 {[%clk 0:00:44.4]} 42... Rd3 {[%clk 0:00:42.5]} 43.
Qe2 {[%clk 0:00:25.3]} 43... Ng6 {[%clk 0:00:21]} 44. Bb2 {[%clk 0:00:24.4]}
44... Bb4 {[%clk 0:00:21.9]} 45. Bc1 {[%clk 0:00:18.4]} 45... Bd6 {[%clk
0:00:19]} 46. Rh1 {[%clk 0:00:15.1]} 46... Ne5 {[%clk 0:00:20.3]} 47. Ba8 {[%clk
0:00:15.9]} 47... Qa7 {[%clk 0:00:19.9]} 48. Bc6 {[%clk 0:00:08.7]} 48... Qa6
{[%clk 0:00:15.7]} 49. Qxd3 {[%clk 0:00:04.4]} 49... Qxc6+ {[%clk 0:00:15.9]}
0-1

[Event "*** Titled Tuesday Blitz"]
[Site "Chess.com"]
[Date "2018.06.05"]
[Round "8"]
[White "Colombiano07"]
[Black "sere99"]
[Result "0-1"]
[WhiteElo "2236"]
[BlackElo "2276"]
[TimeControl "180+2"]
[EndTime "14:57:24 PDT"]
[Termination "sere99 won by resignation"]

1. e4 {[%clk 0:03:01.9]} 1... c6 {[%clk 0:03:00.4]} 2. d4 {[%clk 0:03:02.6]}
2... d5 {[%clk 0:03:02]} 3. exd5 {[%clk 0:03:04.5]} 3... cxd5 {[%clk 0:03:02.7]}
4. Bd3 {[%clk 0:03:05.7]} 4... Nc6 {[%clk 0:03:03.3]} 5. c3 {[%clk 0:03:06.2]}
5... Qc7 {[%clk 0:03:04.9]} 6. Ne2 {[%clk 0:03:05.8]} 6... Bg4 {[%clk
0:03:04.6]} 7. f3 {[%clk 0:03:06]} 7... Bd7 {[%clk 0:03:05.9]} 8. Bf4 {[%clk
0:03:06.6]} 8... e5 {[%clk 0:03:07.3]} 9. dxe5 {[%clk 0:03:07.4]} 9... Nxe5
{[%clk 0:03:09.2]} 10. O-O {[%clk 0:03:08.4]} 10... Bd6 {[%clk 0:03:10.7]} 11.
Bg3 {[%clk 0:03:08.7]} 11... Ne7 {[%clk 0:03:03.6]} 12. Bc2 {[%clk 0:03:09.3]}
12... O-O {[%clk 0:03:01.2]} 13. Nd2 {[%clk 0:03:09.9]} 13... Rfe8 {[%clk
0:02:41.7]} 14. Nb3 {[%clk 0:03:10.5]} 14... Nc4 {[%clk 0:02:39.7]} 15. Qc1
{[%clk 0:02:57.6]} 15... Nf5 {[%clk 0:02:24.9]} 16. Bxd6 {[%clk 0:02:56.2]}
16... Qxd6 {[%clk 0:02:23.5]} 17. Bxf5 {[%clk 0:02:56.6]} 17... Bxf5 {[%clk
0:02:09.2]} 18. Nbd4 {[%clk 0:02:56.9]} 18... Bd3 {[%clk 0:02:06.2]} 19. Re1
{[%clk 0:02:51.8]} 19... Qb6 {[%clk 0:01:53.5]} 20. b3 {[%clk 0:02:49.7]} 20...
Bxe2 {[%clk 0:01:53.7]} 21. bxc4 {[%clk 0:02:43.3]} 21... Bxc4 {[%clk
0:01:49.8]} 22. Rb1 {[%clk 0:02:39]} 22... Qc7 {[%clk 0:01:50]} 23. Qa3 {[%clk
0:02:26.5]} 23... b6 {[%clk 0:01:45.6]} 24. Rxe8+ {[%clk 0:02:24.7]} 24... Rxe8
{[%clk 0:01:47.5]} 25. Nb5 {[%clk 0:02:19.4]} 25... Bxb5 {[%clk 0:01:31.7]} 26.
Rxb5 {[%clk 0:02:19.4]} 26... Qc4 {[%clk 0:01:32.9]} 27. Rb1 {[%clk 0:02:12.6]}
27... Qd3 {[%clk 0:01:16.9]} 28. Rf1 {[%clk 0:01:58.7]} 28... a6 {[%clk
0:00:54.7]} 29. Qd6 {[%clk 0:01:53.3]} 29... Qxc3 {[%clk 0:00:48]} 30. Qxd5
{[%clk 0:01:48]} 30... h6 {[%clk 0:00:46]} 31. h3 {[%clk 0:01:29.3]} 31... Qe3+
{[%clk 0:00:46.9]} 32. Kh2 {[%clk 0:01:27.1]} 32... Qe5+ {[%clk 0:00:47.9]} 33.
Qxe5 {[%clk 0:01:28.3]} 33... Rxe5 {[%clk 0:00:49.8]} 34. Rf2 {[%clk 0:01:28.9]}
34... Ra5 {[%clk 0:00:50.5]} 35. Kg3 {[%clk 0:01:29.6]} 35... Kf8 {[%clk
0:00:52]} 36. Re2 {[%clk 0:01:29.7]} 36... f6 {[%clk 0:00:52.4]} 37. Kf2 {[%clk
0:01:29.1]} 37... Ra3 {[%clk 0:00:53.9]} 38. Ke1 {[%clk 0:01:30]} 38... b5
{[%clk 0:00:55.2]} 39. Kd1 {[%clk 0:01:31.4]} 39... Kf7 {[%clk 0:00:56.6]} 40.
Kc1 {[%clk 0:01:32.8]} 40... a5 {[%clk 0:00:57.7]} 41. Kb2 {[%clk 0:01:33.7]}
41... b4 {[%clk 0:00:58.4]} 42. Re4 {[%clk 0:01:30]} 42... Rd3 {[%clk
0:00:58.6]} 43. Re2 {[%clk 0:01:28.5]} 43... f5 {[%clk 0:00:58.8]} 44. Kc2
{[%clk 0:01:28.7]} 44... Ra3 {[%clk 0:00:58.7]} 45. Kb2 {[%clk 0:01:29.7]} 45...
Kf6 {[%clk 0:01:00.3]} 46. Rc2 {[%clk 0:01:18.2]} 46... Re3 {[%clk 0:00:59.8]}
47. Rd2 {[%clk 0:01:14.7]} 47... g6 {[%clk 0:00:58.1]} 48. Rc2 {[%clk
0:01:15.8]} 48... Kg5 {[%clk 0:00:59]} 49. Kc1 {[%clk 0:01:03]} 49... h5 {[%clk
0:00:53.8]} 50. Kd1 {[%clk 0:01:04.2]} 50... Kf4 {[%clk 0:00:53.7]} 51. Kd2
{[%clk 0:00:53.8]} 51... Ra3 {[%clk 0:00:54.5]} 52. Ke2 {[%clk 0:00:52.3]} 52...
Kg3 {[%clk 0:00:55.5]} 53. Kf1 {[%clk 0:00:53.6]} 53... Rc3 {[%clk 0:00:56.2]}
54. Rd2 {[%clk 0:00:35.9]} 54... Rc1+ {[%clk 0:00:55]} 55. Ke2 {[%clk
0:00:37.4]} 55... Kxg2 {[%clk 0:00:55.9]} 56. h4 {[%clk 0:00:35.8]} 56... Kg3
{[%clk 0:00:56.7]} 57. Rd6 {[%clk 0:00:32]} 57... Rc2+ {[%clk 0:00:57.1]} 58.
Ke3 {[%clk 0:00:33.4]} 58... f4+ {[%clk 0:00:39.1]} 59. Ke4 {[%clk 0:00:33.3]}
59... Re2+ {[%clk 0:00:40.3]} 60. Kd3 {[%clk 0:00:26.8]} 60... Rxa2 {[%clk
0:00:41.8]} 0-1

[Event "*** Titled Tuesday Blitz"]
[Site "Chess.com"]
[Date "2018.06.05"]
[Round "8"]
[White "olksuna"]
[Black "Gvalch"]
[Result "0-1"]
[WhiteElo "2412"]
[BlackElo "2601"]
[TimeControl "180+2"]
[EndTime "14:57:25 PDT"]
[Termination "Gvalch won by resignation"]

1. e4 {[%clk 0:00:16.3]} 1... e5 {[%clk 0:02:59.5]} 2. Nf3 {[%clk 0:00:16.7]}
2... Nc6 {[%clk 0:03:00.9]} 3. Bc4 {[%clk 0:00:17.5]} 3... Bc5 {[%clk
0:03:01.4]} 4. d3 {[%clk 0:00:18.9]} 4... Nf6 {[%clk 0:03:02.5]} 5. h3 {[%clk
0:00:20.6]} 5... a6 {[%clk 0:03:00.6]} 6. O-O {[%clk 0:00:22.1]} 6... O-O {[%clk
0:03:01.1]} 7. c3 {[%clk 0:00:23.3]} 7... d6 {[%clk 0:02:58.5]} 8. Nbd2 {[%clk
0:00:24.7]} 8... Na5 {[%clk 0:02:59.2]} 9. Re1 {[%clk 0:00:25.4]} 9... h6 {[%clk
0:02:54]} 10. b4 {[%clk 0:00:24.4]} 10... Nxc4 {[%clk 0:02:54.2]} 11. Nxc4
{[%clk 0:00:26.3]} 11... Ba7 {[%clk 0:02:54.8]} 12. Be3 {[%clk 0:00:27.9]} 12...
Bxe3 {[%clk 0:02:45.1]} 13. Nxe3 {[%clk 0:00:29.8]} 13... Re8 {[%clk 0:02:46.4]}
14. Qc2 {[%clk 0:00:30.5]} 14... d5 {[%clk 0:02:43.5]} 15. exd5 {[%clk
0:00:30.8]} 15... Nxd5 {[%clk 0:02:43.9]} 16. Nxd5 {[%clk 0:00:31.6]} 16... Qxd5
{[%clk 0:02:45.4]} 17. c4 {[%clk 0:00:30.3]} 17... Qd6 {[%clk 0:02:45.1]} 18. a3
{[%clk 0:00:30]} 18... a5 {[%clk 0:02:44]} 19. Rad1 {[%clk 0:00:28.5]} 19...
axb4 {[%clk 0:02:39.6]} 20. axb4 {[%clk 0:00:30.4]} 20... Bf5 {[%clk 0:02:35.5]}
21. Qb2 {[%clk 0:00:31.3]} 21... f6 {[%clk 0:02:33.7]} 22. b5 {[%clk 0:00:32]}
22... Rad8 {[%clk 0:01:33.8]} 23. d4 {[%clk 0:00:26.1]} 23... exd4 {[%clk
0:01:34.2]} 24. Rxe8+ {[%clk 0:00:25.7]} 24... Rxe8 {[%clk 0:01:34.5]} 25. Qxd4
{[%clk 0:00:25.4]} 25... Qxd4 {[%clk 0:01:30.9]} 26. Rxd4 {[%clk 0:00:23.5]}
26... b6 {[%clk 0:01:32.1]} 27. Kf1 {[%clk 0:00:22.2]} 27... Kf8 {[%clk
0:01:31.5]} 28. g4 {[%clk 0:00:22.5]} 28... Bc2 {[%clk 0:01:25.2]} 29. Nd2
{[%clk 0:00:19.6]} 29... Ke7 {[%clk 0:01:24.2]} 30. f3 {[%clk 0:00:20.9]} 30...
Rd8 {[%clk 0:01:24.4]} 31. Rxd8 {[%clk 0:00:21.1]} 31... Kxd8 {[%clk 0:01:26.3]}
32. Kf2 {[%clk 0:00:22.6]} 32... Ke7 {[%clk 0:01:27.3]} 33. Ke3 {[%clk
0:00:24.2]} 33... Kd6 {[%clk 0:01:27.7]} 34. Kd4 {[%clk 0:00:25.3]} 34... g5
{[%clk 0:01:19.4]} 35. Nf1 {[%clk 0:00:25.8]} 35... Bd1 {[%clk 0:01:13.2]} 36.
Ne3 {[%clk 0:00:25.4]} 36... Bxf3 {[%clk 0:01:11.8]} 37. Nf5+ {[%clk 0:00:26.5]}
37... Ke6 {[%clk 0:01:11.1]} 38. Nxh6 {[%clk 0:00:27.5]} 38... Bg2 {[%clk
0:01:12.5]} 39. c5 {[%clk 0:00:24.4]} 39... Bxh3 {[%clk 0:01:09.4]} 40. Kc4
{[%clk 0:00:15.8]} 40... Bf1+ {[%clk 0:01:08.4]} 41. Kb4 {[%clk 0:00:15.4]}
41... Bd3 {[%clk 0:01:09.4]} 42. c6 {[%clk 0:00:13.1]} 42... f5 {[%clk
0:01:03.4]} 43. gxf5+ {[%clk 0:00:13.7]} 43... Bxf5 {[%clk 0:01:04]} 44. Kc4
{[%clk 0:00:14.7]} 44... g4 {[%clk 0:01:01.9]} 45. Kd4 {[%clk 0:00:15.4]} 45...
g3 {[%clk 0:01:01.7]} 46. Ke3 {[%clk 0:00:16.4]} 46... Kf6 {[%clk 0:01:00.5]}
47. Kf3 {[%clk 0:00:15.7]} 47... Be6 {[%clk 0:01:00.6]} 48. Kxg3 {[%clk
0:00:13]} 48... Kg6 {[%clk 0:01:01.4]} 49. Ng4 {[%clk 0:00:12.4]} 49... Kf5
{[%clk 0:00:50.9]} 50. Ne3+ {[%clk 0:00:10]} 50... Ke4 {[%clk 0:00:50.9]} 51.
Kf2 {[%clk 0:00:11.2]} 51... Kd4 {[%clk 0:00:51.8]} 52. Ke2 {[%clk 0:00:09.6]}
52... Kc5 {[%clk 0:00:53.1]} 53. Kd3 {[%clk 0:00:09.1]} 53... Kxb5 {[%clk
0:00:54.3]} 54. Kd4 {[%clk 0:00:10.4]} 54... Kxc6 {[%clk 0:00:55.1]} 55. Nc2
{[%clk 0:00:12.3]} 55... Kd6 {[%clk 0:00:55.3]} 56. Kc3 {[%clk 0:00:11.8]} 56...
c5 {[%clk 0:00:56.4]} 57. Na3 {[%clk 0:00:13.4]} 57... Kc6 {[%clk 0:00:57.5]}
58. Nc2 {[%clk 0:00:14.6]} 58... b5 {[%clk 0:00:58.7]} 59. Kd3 {[%clk
0:00:15.8]} 59... Bf5+ {[%clk 0:00:59.1]} 60. Kc3 {[%clk 0:00:15.7]} 60... Bxc2
{[%clk 0:01:01]} 61. Kxc2 {[%clk 0:00:17.5]} 61... Kd5 {[%clk 0:01:01.4]} 62.
Kb2 {[%clk 0:00:19.4]} 0-1